bitfinex-derivatives/quotes_BNBF0:USTF0_20250221
["timestamp","ask_amount","ask_price","bid_price","bid_amount"]
[1740097872061,1.429,656.26,655.22,1.14253342]
[1740097873161,1.429,656.26,655.27,1.14253342]
[1740097875465,1.429,656.26,655.25,1.14253342]
[1740097878167,1.429,656.26,655.27,1.14253342]
[1740097878464,1.429,656.26,655.28,2.97703638]
[1740097879968,1.429,656.26,655.29,2.97703638]
[1740097880769,1.429,656.26,655.35,1.14253342]
[1740097881571,0.30475261,656.27,655.35,1.14253342]
[1740097882076,0.30475261,656.27,655.36,2.97703638]
[1740097883173,0.30475261,656.27,655.37,2.97703638]
[1740097883978,0.30475261,656.27,655.42,1.14253342]
[1740097884676,1.09,656.26,655.42,1.14253342]
[1740097884975,1.09,656.26,655.43,2.97703638]
[1740097885475,0.3047619,656.25,655.43,2.97703638]
[1740097886777,0.3047619,656.25,655.42,1.14253342]
[1740097887177,0.3047619,656.25,655.36,1.14253342]
[1740097888773,1.59383838,656.24,655.36,1.14253342]
[1740097888974,0.30477119,656.23,655.36,1.14253342]
[1740097889471,1.122,656.22,655.36,1.14253342]
[1740097889675,0.30478048,656.21,655.36,1.14253342]
[1740097890177,0.30478048,656.21,655.02,1.14253342]
[1740097890777,0.30478048,656.21,655.03,2.97900054]
[1740097891578,0.30478048,656.21,655.04,1.14253342]
[1740097892479,0.30478048,656.21,655.05,2.97900054]
[1740097894280,0.30478048,656.21,655.06,2.97900054]
[1740097896179,0.30478048,656.21,655.07,2.97900054]
[1740097897887,0.30478048,656.21,655.08,2.97900054]
[1740097898186,0.30478048,656.21,655.27,1.14253342]
[1740097899090,0.30478048,656.21,655.28,2.97900054]
[1740097900695,1.266,656.2,655.28,2.97900054]
[1740097900896,0.30478977,656.19,655.29,2.97900054]
[1740097902588,0.30478977,656.19,655.3,2.97900054]
[1740097903492,0.30478977,656.19,655.31,2.97900054]
[1740097904492,0.30478977,656.19,655.32,2.97900054]
[1740097906293,0.30478977,656.19,655.33,2.97900054]
[1740097907895,0.30478977,656.19,655.34,2.97900054]
[1740097909494,0.30478977,656.19,654.97,1.14253342]
[1740097909894,0.30478977,656.19,655.17,1.14253342]
[1740097910094,0.30478977,656.19,655.18,2.97849357]
[1740097911894,0.30478977,656.19,655.19,2.97849357]
[1740097912496,0.30478977,656.19,655.23,1.14253342]
[1740097913095,0.30478977,656.19,655.24,2.97849357]
[1740097914897,0.30478977,656.19,655.23,1.14253342]
[1740097915098,0.30478977,656.19,655.27,1.14253342]
[1740097915597,0.30478977,656.19,655.28,2.9784829]
[1740097916999,0.30478977,656.19,655.29,2.9784829]
[1740097918599,0.30478977,656.19,655.3,2.9784829]
[1740097918600,1.397,656.18,655.3,2.9784829]
[1740097918805,0.30479906,656.17,655.3,2.9784829]
[1740097919299,1.59389921,656.16,655.3,2.9784829]
[1740097919500,0.30480835,656.15,655.3,2.9784829]
[1740097919893,0.30480835,656.15,655.31,2.9784829]
[1740097921398,0.30480835,656.15,655.32,2.9784829]
[1740097923199,0.30480835,656.15,655.33,2.9784829]
[1740097924604,0.30480835,656.15,655.05,1.14253342]
[1740097925005,0.30480835,656.15,655.31,1.14253342]
[1740097926199,0.30480835,656.15,655.32,2.97717205]
[1740097927103,1.018,656.14,655.32,2.97717205]
[1740097927504,1.018,656.14,655.33,2.97717205]
[1740097929004,1.018,656.14,655.43,1.14253342]
[1740097931199,1.507,656.13,655.43,1.14253342]
[1740097931598,1.507,656.13,655.44,2.97596312]
[1740097932206,1.018,656.14,655.44,2.97596312]
[1740097932801,1.018,656.14,655.45,2.97596312]
[1740097932999,0.23259855,656.14,655.45,2.97596312]
[1740097934500,0.23259855,656.14,655.35,1.14253342]
[1740097936210,0.23259855,656.14,655.46,1.14253342]
[1740097938304,1.35769614,657.47,655.46,1.14253342]
[1740097938508,0.30424266,657.37,655.46,1.14253342]
[1740097938705,1.11765819,657.36,655.46,1.14253342]
[1740097939010,0.30425654,657.34,655.46,1.14253342]
[1740097939312,1.11765819,657.33,655.39,1.14253342]
[1740097939506,0.30427043,657.31,655.39,1.14253342]
[1740097939707,1.11765819,657.3,655.39,1.14253342]
[1740097939909,0.30428432,657.28,655.39,1.14253342]
[1740097940110,1.11765819,657.27,655.39,1.14253342]
[1740097940413,0.30429821,657.25,655.39,1.14253342]
[1740097940613,1.11765819,657.24,655.39,1.14253342]
[1740097940912,0.3043121,657.22,655.39,1.14253342]
[1740097941111,1.11765819,657.21,655.39,1.14253342]
[1740097941309,0.30432599,657.19,655.39,1.14253342]
[1740097941510,1.11765819,657.18,655.39,1.14253342]
[1740097941711,0.30433988,657.16,655.39,1.14253342]
[1740097941907,1.11765819,657.15,655.39,1.14253342]
[1740097942111,0.30435378,657.13,655.39,1.14253342]
[1740097942305,1.11765819,657.12,655.21,1.14253342]
[1740097942505,0.30436767,657.1,655.19,1.14253342]
[1740097942709,1.11765819,657.09,655.19,1.14253342]
[1740097942911,0.30438157,657.07,655.19,1.14253342]
[1740097943415,0.8426584,657.06,655.19,1.14253342]
[1740097943614,0.30439547,657.04,655.19,1.14253342]
[1740097944112,0.8426584,657.03,655.2,0.3052503]
[1740097944315,0.30440936,657.01,655.2,0.3052503]
[1740097944711,1.157,657.0,655.2,0.3052503]
[1740097945615,0.30442327,656.98,655.2,0.3052503]
[1740097947819,0.30442327,656.98,655.26,1.14253342]
[1740097949218,1.59265912,656.97,655.26,1.14253342]
[1740097949416,0.30443717,656.95,655.26,1.14253342]
[1740097952424,0.30443717,656.95,655.27,0.30521769]
[1740097952825,0.30443717,656.95,655.33,1.14253342]
[1740097955526,0.30443717,656.95,655.66,1.14253342]
[1740097958631,0.30443717,656.95,655.64,1.14253342]
[1740097961329,0.83933347,656.94,655.64,1.14253342]
[1740097961528,0.30445107,656.92,655.69,1.14253342]
[1740097962026,0.83933347,656.91,655.69,1.14253342]
[1740097962334,0.30446497,656.89,655.69,1.14253342]
[1740097962731,0.83933347,656.88,655.69,1.14253342]
[1740097962932,0.30447888,656.86,655.69,1.14253342]
[1740097963930,1.529,656.85,655.69,1.14253342]
[1740097964232,0.30448815,656.84,655.69,1.14253342]
[1740097964734,0.30448815,656.84,655.44,1.14253342]
[1740097967135,0.30448815,656.84,655.68,1.14253342]
[1740097969741,0.30448815,656.84,655.69,1.14253342]
[1740097972831,0.30448815,656.84,655.85,1.14253342]
[1740097973036,1.59247692,656.83,655.85,1.14253342]
[1740097973235,0.30449742,656.82,655.85,1.14253342]
[1740097977545,0.30449742,656.82,655.54,1.14253342]
[1740097979646,0.30449742,656.82,655.4,1.14253342]
[1740097981747,0.30449742,656.82,655.37,1.14253342]
[1740097983751,0.30449742,656.82,655.36,1.14253342]
[1740097985852,0.30449742,656.82,655.61,1.14253342]
[1740097987657,0.30449742,656.82,655.62,1.14253342]
[1740097990352,0.30449742,656.82,655.68,1.14253342]
[1740097993251,0.30449742,656.82,655.43,1.14253342]
[1740097996254,0.30449742,656.82,655.55,1.14253342]
[1740097998656,1.12381372,656.81,655.55,1.14253342]
[1740097998855,0.30451133,656.79,655.55,1.14253342]
[1740097999053,1.12381372,656.78,655.55,1.14253342]
[1740097999251,0.30452524,656.76,655.55,1.14253342]
[1740097999453,0.30452524,656.76,655.53,1.14253342]
[1740097999454,1.1236048,656.75,655.53,1.14253342]
[1740097999650,1.42813931,656.74,655.53,1.14253342]
[1740097999857,0.30453915,656.73,655.53,1.14253342]
[1740098000049,1.15217196,656.73,655.53,1.14253342]
[1740098000854,0.84763281,656.72,655.53,1.14253342]
[1740098001055,0.30454843,656.71,655.53,1.14253342]
[1740098001356,0.84763281,656.7,655.53,1.14253342]
[1740098001556,0.3045577,656.69,655.53,1.14253342]
[1740098002056,0.84763281,656.68,655.53,1.14253342]
[1740098002260,0.30456698,656.67,655.52,1.14253342]
[1740098002458,1.15219979,656.67,655.52,1.14253342]
[1740098002956,0.84763281,656.66,655.52,1.14253342]
[1740098003257,0.30457625,656.65,655.52,1.14253342]
[1740098004255,0.84693013,656.64,655.52,1.14253342]
[1740098004556,0.30458553,656.63,655.52,1.14253342]
[1740098004959,0.84693013,656.62,655.52,1.14253342]
[1740098005158,0.30459481,656.61,655.52,1.14253342]
[1740098005358,1.32059481,656.61,655.52,1.14253342]
[1740098006260,1.32059481,656.61,655.39,1.14253342]
[1740098009563,1.32059481,656.61,654.74,2.33267241]
[1740098009564,1.32059481,656.61,655.18,1.14253342]
[1740098010362,1.59323638,656.6,655.18,1.14253342]
[1740098010563,0.30460409,656.59,655.18,1.14253342]
[1740098011666,0.30460409,656.59,655.23,1.14253342]
[1740098014066,0.30460409,656.59,655.15,1.14253342]
[1740098017265,0.30460409,656.59,655.4,1.14253342]
[1740098023377,0.30460409,656.59,655.41,1.14253342]
[1740098026880,0.30460409,656.59,655.45,1.14253342]
[1740098029181,0.30460409,656.59,655.47,1.14253342]
[1740098029583,1.515,656.58,655.47,1.14253342]
[1740098029782,0.30461336,656.57,655.47,1.14253342]
[1740098032083,0.30461336,656.57,655.34,1.14253342]
[1740098034787,0.30461336,656.57,655.4,1.14253342]
[1740098037388,0.30461336,656.57,655.44,1.14253342]
[1740098039687,0.30461336,656.57,655.61,1.14253342]
[1740098041791,0.30461336,656.57,655.62,1.14253342]
[1740098042891,1.291,656.56,655.62,1.14253342]
[1740098043092,0.30462264,656.55,655.62,1.14253342]
[1740098044093,0.30462264,656.55,655.58,1.14253342]
[1740098046394,0.30462264,656.55,655.56,1.14253342]
[1740098049100,0.30462264,656.55,655.59,1.14253342]
[1740098052104,0.30462264,656.55,655.6,1.14253342]
[1740098054902,0.30462264,656.55,655.39,1.14253342]
[1740098057405,0.30462264,656.55,655.42,1.14253342]
[1740098060008,0.30462264,656.55,655.6,1.14253342]
[1740098062610,0.30462264,656.55,655.58,1.14253342]
[1740098065513,0.30462264,656.55,655.52,1.14253342]
[1740098065913,0.84914802,656.54,655.52,1.14253342]
[1740098066113,0.30463192,656.53,655.52,1.14253342]
[1740098066516,1.59312089,656.52,655.52,1.14253342]
[1740098066814,0.3046412,656.51,655.52,1.14253342]
[1740098067216,0.3046412,656.51,655.31,1.14253342]
[1740098067416,0.84914802,656.5,655.31,1.14253342]
[1740098067716,0.30465048,656.49,655.31,1.14253342]
[1740098068015,0.84914802,656.48,655.31,1.14253342]
[1740098068215,0.30465977,656.47,655.31,1.14253342]
[1740098068815,0.84914802,656.46,655.31,1.14253342]
[1740098069017,0.30466905,656.45,655.31,1.14253342]
[1740098069712,1.438,656.44,655.31,1.14253342]
[1740098069911,0.30467833,656.43,655.31,1.14253342]
[1740098070620,0.30467833,656.43,654.71,2.33267241]
[1740098070621,0.30467833,656.43,655.28,1.14253342]
[1740098072316,0.30467833,656.43,655.25,1.14253342]
[1740098072619,1.316,656.42,655.25,1.14253342]
[1740098072824,0.30468761,656.41,655.25,1.14253342]
[1740098074921,0.30468761,656.41,655.13,1.14253342]
[1740098076821,1.59366199,656.4,655.13,1.14253342]
[1740098077023,0.3046969,656.39,655.13,1.14253342]
[1740098077421,0.3046969,656.39,655.31,1.14253342]
[1740098080122,0.3046969,656.39,655.34,1.14253342]
[1740098081120,1.225,656.38,655.34,1.14253342]
[1740098081320,0.30470618,656.37,655.34,1.14253342]
[1740098082321,0.30470618,656.37,655.21,1.14253342]
[1740098084523,0.30470618,656.37,655.2,1.14253342]
[1740098088129,0.30470618,656.37,655.14,1.14253342]
[1740098090330,0.30470618,656.37,655.38,1.14253342]
[1740098091829,1.037,656.36,655.38,1.14253342]
[1740098092428,0.30471547,656.35,655.38,1.14253342]
[1740098092929,0.30471547,656.35,655.35,1.14253342]
[1740098096028,0.30471547,656.35,655.42,1.14253342]
[1740098098334,0.30471547,656.35,655.18,1.14253342]
[1740098102244,0.30471547,656.35,655.32,1.14253342]
[1740098104739,0.30471547,656.35,654.79,2.33267241]
[1740098104740,0.30471547,656.35,655.35,1.14253342]
[1740098106643,0.30471547,656.35,655.6,1.14253342]
[1740098109853,0.30471547,656.35,655.66,1.14253342]
[1740098114557,0.30471547,656.35,655.5,1.14253342]
[1740098116756,0.30471547,656.35,655.46,1.14253342]
[1740098118960,0.30471547,656.35,655.45,1.14253342]
[1740098119760,1.514,656.34,655.45,1.14253342]
[1740098121661,1.514,656.34,655.22,1.14253342]
[1740098123564,1.514,656.34,655.18,1.14253342]
[1740098124163,1.317,656.33,655.18,1.14253342]
[1740098126065,1.317,656.33,655.26,1.14253342]
[1740098128865,1.317,656.33,655.55,1.14253342]
[1740098130967,1.317,656.33,655.56,1.14253342]
[1740098133968,1.317,656.33,655.58,1.14253342]
[1740098136271,1.317,656.33,655.51,1.14253342]
[1740098139471,1.317,656.33,655.62,1.14253342]
[1740098142574,1.317,656.33,655.55,1.14253342]
[1740098142874,1.514,656.34,655.55,1.14253342]
[1740098143976,0.30471547,656.35,655.55,1.14253342]
[1740098145875,0.30471547,656.35,655.34,1.14253342]
[1740098146970,1.35769614,657.08,655.34,1.14253342]
[1740098147176,1.12386107,657.07,655.34,1.14253342]
[1740098147374,1.12386107,657.06,655.34,1.14253342]
[1740098147574,1.35769614,657.08,655.34,1.14253342]
[1740098147575,1.12386107,657.05,655.34,1.14253342]
[1740098147776,1.12386107,657.04,655.34,1.14253342]
[1740098147976,1.12386107,657.03,655.34,1.14253342]
[1740098148273,1.12386107,657.02,655.34,1.14253342]
[1740098148478,1.12386107,657.01,655.34,1.14253342]
[1740098148978,1.35769614,656.94,655.38,1.14253342]
[1740098149172,1.12386107,656.93,655.38,1.14253342]
[1740098149577,1.12393673,656.92,655.38,1.14253342]
[1740098149880,1.12393673,656.91,655.38,1.14253342]
[1740098150580,0.84766286,656.9,655.38,1.14253342]
[1740098150973,0.84766286,656.93,655.38,1.14253342]
[1740098151177,1.12404281,656.92,655.38,1.14253342]
[1740098151373,1.12404281,656.91,655.38,1.14253342]
[1740098151578,1.12404281,656.9,655.69,1.14253342]
[1740098151879,0.84766286,656.89,655.69,1.14253342]
[1740098152279,0.84766286,656.96,655.69,1.14253342]
[1740098152479,1.12422721,656.95,655.69,1.14253342]
[1740098152680,1.12422721,656.94,655.69,1.14253342]
[1740098152880,1.97189007,656.93,655.69,1.14253342]
[1740098153184,1.12422721,656.92,655.69,1.14253342]
[1740098153580,0.84766286,656.91,655.69,1.14253342]
[1740098154077,0.84766286,656.96,655.69,1.14253342]
[1740098154275,1.12430052,656.95,655.69,1.14253342]
[1740098154479,1.12430052,656.94,655.69,1.14253342]
[1740098154681,1.12430052,656.93,655.69,1.14253342]
[1740098154875,1.12430052,656.93,655.66,1.14253342]
[1740098155076,0.84766286,656.92,655.66,1.14253342]
[1740098155576,1.12446136,656.91,655.66,1.14253342]
[1740098155775,1.12444102,656.9,655.66,1.14253342]
[1740098155976,1.12444102,656.89,655.66,1.14253342]
[1740098156282,1.12444102,656.88,655.66,1.14253342]
[1740098156481,1.12444102,656.87,655.66,1.14253342]
[1740098156680,1.12444102,656.86,655.66,1.14253342]
[1740098157185,0.84766286,656.85,655.66,1.14253342]
[1740098157483,1.12444102,656.84,655.66,1.14253342]
[1740098158183,0.84766286,656.83,655.66,1.14253342]
[1740098158378,1.12444102,656.82,655.66,1.14253342]
[1740098159087,0.84766286,656.81,655.66,1.14253342]
[1740098159280,1.12444102,656.8,655.66,1.14253342]
[1740098159585,1.12539735,656.79,655.66,1.14253342]
[1740098159785,2.44041918,656.81,655.1,2.33267241]
[1740098159786,1.35769614,656.73,655.3,1.14253342]
[1740098159985,1.12539735,656.72,655.3,1.14253342]
[1740098160185,1.12539735,656.71,655.3,1.14253342]
[1740098160378,0.84766286,656.7,655.3,1.14253342]
[1740098160583,1.12539735,656.69,655.3,1.14253342]
[1740098161285,0.84766286,656.68,655.3,1.14253342]
[1740098161485,1.12539735,656.67,655.3,1.14253342]
[1740098161880,1.12539735,656.67,655.25,1.14253342]
[1740098162081,0.84766286,656.66,655.25,1.14253342]
[1740098162285,1.12539735,656.65,655.25,1.14253342]
[1740098163088,1.82766286,656.66,655.25,1.14253342]
[1740098163381,0.84766286,656.64,655.25,1.14253342]
[1740098163588,0.98,656.66,655.25,1.14253342]
[1740098164482,0.98,656.66,655.33,1.14253342]
[1740098164483,1.35769614,656.6,655.33,1.14253342]
[1740098166489,0.30460409,656.59,655.33,1.14253342]
[1740098167485,0.30460409,656.59,655.68,1.14253342]
[1740098169883,1.59297504,656.58,655.68,1.14253342]
[1740098170088,0.30461336,656.57,655.68,1.14253342]
[1740098171091,0.30461336,656.57,655.48,1.14253342]
[1740098173492,0.30461336,656.57,655.51,1.14253342]
[1740098174394,0.954,656.56,655.51,1.14253342]
[1740098176299,0.954,656.56,655.57,1.14253342]
[1740098178394,0.954,656.56,655.59,1.14253342]
[1740098181704,0.954,656.56,655.75,1.14253342]
[1740098183996,0.954,656.56,655.74,1.14253342]
[1740098187499,0.954,656.56,655.71,1.14253342]
[1740098189610,0.954,656.56,655.54,1.14253342]
[1740098191713,0.954,656.56,655.55,1.14253342]
[1740098194410,0.954,656.56,655.05,2.33267241]
[1740098194411,0.954,656.56,655.5,1.14253342]
[1740098196410,0.30461336,656.57,655.5,1.14253342]
[1740098197305,0.30461336,656.57,655.62,1.14253342]
[1740098203214,1.17,656.56,655.62,1.14253342]
[1740098203415,0.30462264,656.55,655.62,1.14253342]
[1740098203916,1.89776784,656.55,655.62,1.14253342]
[1740098204113,0.30462728,656.54,655.64,1.14253342]
[1740098207108,0.30462728,656.54,655.56,1.14253342]
[1740098209418,0.8485937,656.53,655.56,1.14253342]
[1740098209616,0.30463656,656.52,655.59,1.14253342]
[1740098210015,1.103,656.51,655.59,1.14253342]
[1740098210211,0.30464584,656.5,655.59,1.14253342]
[1740098210918,0.84836726,656.49,655.59,1.14253342]
[1740098211118,0.30465513,656.48,655.59,1.14253342]
[1740098213320,0.30465513,656.48,655.14,1.14253342]
[1740098214119,1.59354036,656.47,655.14,1.14253342]
[1740098214422,0.30466441,656.46,655.14,1.14253342]
[1740098216228,0.30466441,656.46,655.1,1.14253342]
[1740098219229,0.30466441,656.46,655.24,1.14253342]
[1740098222230,0.30466441,656.46,655.23,1.14253342]
[1740098224429,0.30466441,656.46,655.27,1.14253342]
[1740098225331,1.029,656.45,655.27,1.14253342]
[1740098225533,0.30467833,656.43,655.27,1.14253342]
[1740098227233,0.30467833,656.43,655.3,1.14253342]
[1740098231130,0.30467833,656.43,654.81,1.59368632]
[1740098231131,0.30467833,656.43,655.28,1.14253342]
[1740098233738,0.30467833,656.43,655.1,1.14253342]
[1740098236938,0.30467833,656.43,655.13,1.14253342]
[1740098239735,0.30467833,656.43,655.2,1.14253342]
[1740098240640,0.977,656.42,655.2,1.14253342]
[1740098240840,0.30468761,656.41,655.2,1.14253342]
[1740098241542,1.59353428,656.4,655.2,1.14253342]
[1740098241943,0.3046969,656.39,655.2,1.14253342]
[1740098242545,0.3046969,656.39,655.25,1.14253342]
[1740098242745,0.3046969,656.39,655.45,1.14253342]
[1740098244844,0.3046969,656.39,655.51,1.14253342]
[1740098246348,0.3046969,656.39,655.66,1.14253342]
[1740098248452,0.3046969,656.39,655.44,1.14253342]
[1740098251450,0.3046969,656.39,655.43,1.14253342]
[1740098255657,0.3046969,656.39,655.33,1.14253342]
[1740098258553,0.3046969,656.39,655.39,1.14253342]
[1740098261254,0.3046969,656.39,655.4,1.14253342]
[1740098263161,0.3046969,656.39,654.78,2.33267241]
[1740098263162,0.3046969,656.39,655.17,1.14253342]
[1740098265863,0.3046969,656.39,655.19,1.14253342]
[1740098268666,0.3046969,656.39,655.24,1.14253342]
[1740098270766,0.3046969,656.39,655.56,1.14253342]
[1740098272664,0.3046969,656.39,655.61,1.14253342]
[1740098275766,0.3046969,656.39,655.62,1.14253342]
[1740098279572,0.3046969,656.39,655.52,1.14253342]
[1740098286974,1.447,656.38,655.52,1.14253342]
[1740098287169,0.30470618,656.37,655.52,1.14253342]
[1740098287373,0.30470618,656.37,655.34,1.14253342]
[1740098290378,0.30470618,656.37,655.31,1.14253342]
[1740098293182,0.30470618,656.37,655.47,1.14253342]
[1740098295587,0.30470618,656.37,655.5,1.14253342]
[1740098301084,0.30470618,656.37,655.25,1.14253342]
[1740098304191,0.30470618,656.37,655.23,1.14253342]
[1740098307995,0.30470618,656.37,655.25,1.14253342]
[1740098310091,0.30470618,656.37,655.53,1.14253342]
[1740098312295,0.30470618,656.37,655.59,1.14253342]
[1740098315104,0.30470618,656.37,655.53,1.14253342]
[1740098317806,0.30470618,656.37,655.42,1.14253342]
[1740098320306,0.30470618,656.37,655.46,1.14253342]
[1740098322808,0.30470618,656.37,655.03,1.14253342]
[1740098323110,0.84927968,656.36,655.03,1.14253342]
[1740098323311,0.30471547,656.35,655.03,1.14253342]
[1740098324107,0.925,656.34,655.03,1.14253342]
[1740098324310,0.30472475,656.33,655.03,1.14253342]
[1740098324510,1.25772475,656.33,655.03,1.14253342]
[1740098324713,1.035,656.32,655.03,1.14253342]
[1740098324906,0.30473404,656.31,655.03,1.14253342]
[1740098325307,0.30473404,656.31,654.98,1.14253342]
[1740098330814,0.30473404,656.31,655.3,1.14253342]
[1740098334020,0.30473404,656.31,655.45,1.14253342]
[1740098336717,0.30473404,656.31,655.54,1.14253342]
[1740098339415,0.30473404,656.31,655.35,1.14253342]
[1740098344526,1.366,656.3,655.35,1.14253342]
[1740098344727,0.30474332,656.29,655.35,1.14253342]
[1740098346127,0.30474332,656.29,655.28,1.14253342]
[1740098348731,0.30474332,656.29,654.66,2.33267241]
[1740098348732,0.30474332,656.29,655.38,1.14253342]
[1740098353735,0.30474332,656.29,655.24,1.14253342]
[1740098356733,0.30474332,656.29,655.22,1.14253342]
[1740098359833,0.30474332,656.29,655.38,1.14253342]
[1740098361739,1.017,656.28,655.38,1.14253342]
[1740098362738,1.017,656.28,655.56,1.14253342]
[1740098365743,1.017,656.28,655.57,1.14253342]
[1740098366139,1.32174797,656.28,655.57,1.14253342]
[1740098366342,0.30475261,656.27,655.57,1.14253342]
[1740098366542,1.89826865,656.27,655.57,1.14253342]
[1740098368246,1.89826865,656.27,655.28,1.14253342]
[1740098370846,1.89826865,656.27,655.26,1.14253342]
[1740098373146,1.89826865,656.27,655.24,1.14253342]
[1740098375753,1.89826865,656.27,654.96,1.14253342]
[1740098375754,1.89826865,656.27,655.23,1.14253342]
[1740098378448,1.89826865,656.27,655.1,1.14253342]
[1740098381556,1.89826865,656.27,655.02,1.14253342]
[1740098384660,1.89826865,656.27,655.1,1.14253342]
[1740098389363,1.89826865,656.27,655.12,1.14253342]
[1740098394569,1.89826865,656.27,654.99,1.14253342]
[1740098395471,1.363,656.26,654.99,1.14253342]
[1740098395665,0.3047619,656.25,654.99,1.14253342]
[1740098397073,0.3047619,656.25,654.94,1.14253342]
[1740098399665,0.3047619,656.25,655.04,1.14253342]
[1740098405877,0.3047619,656.25,655.15,1.14253342]
[1740098408780,0.3047619,656.25,654.56,2.33267241]
[1740098408781,0.3047619,656.25,655.13,1.14253342]
[1740098410888,1.076,656.24,655.13,1.14253342]
[1740098411087,0.30477583,656.22,655.13,1.14253342]
[1740098413591,0.30477583,656.22,654.97,1.14253342]
[1740098416294,0.30477583,656.22,655.01,1.14253342]
[1740098416687,1.12377433,656.21,655.01,1.14253342]
[1740098416889,0.30478977,656.19,655.01,1.14253342]
[1740098417391,2.4420689,656.18,655.01,1.14253342]
[1740098417591,0.3048037,656.16,655.01,1.14253342]
[1740098418193,0.84776807,656.15,655.01,1.14253342]
[1740098418492,0.30481764,656.13,654.8,1.14253342]
[1740098421694,0.30481764,656.13,654.87,1.14253342]
[1740098422095,1.221,656.12,654.87,1.14253342]
[1740098422289,0.30483158,656.1,654.87,1.14253342]
[1740098424397,0.30483158,656.1,654.86,1.14253342]
[1740098427298,0.30483158,656.1,654.88,1.14253342]
[1740098427598,1.59447128,656.09,654.88,1.14253342]
[1740098427798,0.30484551,656.07,654.88,1.14253342]
[1740098431099,0.30484551,656.07,654.8,1.14253342]
[1740098432899,0.30484551,656.07,654.23,2.33267241]
[1740098432900,0.30484551,656.07,654.84,1.14253342]
[1740098435100,0.30484551,656.07,655.08,1.14253342]
[1740098437999,0.30484551,656.07,655.07,1.14253342]
[1740098440698,0.30484551,656.07,654.77,1.14253342]
[1740098442904,0.30484551,656.07,654.53,1.14253342]
[1740098444508,0.30484551,656.07,654.55,1.14253342]
[1740098445704,1.223,656.06,654.55,1.14253342]
[1740098445901,0.30485481,656.05,654.55,1.14253342]
[1740098447105,0.30485481,656.05,654.57,1.14253342]
[1740098450112,0.30485481,656.05,654.82,1.14253342]
[1740098453107,0.30485481,656.05,654.58,0.99848625]
[1740098453108,0.30485481,656.05,655.16,1.14253342]
[1740098456017,1.545,656.04,655.16,1.14253342]
[1740098456218,0.3048641,656.03,655.15,1.14253342]
[1740098457113,1.59436779,656.02,655.15,1.14253342]
[1740098457316,0.3048734,656.01,655.15,1.14253342]
[1740098459219,0.3048734,656.01,655.14,1.14253342]
[1740098461319,1.037,656.0,655.14,1.14253342]
[1740098461826,1.037,656.0,655.12,1.14253342]
[1740098462218,0.30488269,655.99,655.12,1.14253342]
[1740098463821,0.84833326,655.98,655.13,1.14253342]
[1740098464020,0.30489199,655.97,655.13,1.14253342]
[1740098464827,0.84833326,655.96,655.13,1.14253342]
[1740098465425,0.84833326,655.95,655.13,1.14253342]
[1740098466027,0.84833326,655.96,655.13,1.14253342]
[1740098466427,0.84833326,655.95,655.13,1.14253342]
[1740098466622,0.30491058,655.93,655.13,1.14253342]
[1740098466926,0.30491058,655.93,655.04,1.14253342]
[1740098467124,0.84833326,655.92,655.04,1.14253342]
[1740098467326,0.30492453,655.9,655.04,1.14253342]
[1740098469833,0.30492453,655.9,654.64,1.14253342]
[1740098472236,0.30492453,655.9,654.56,1.14253342]
[1740098475034,0.30492453,655.9,654.82,1.14253342]
[1740098477838,0.30492453,655.9,654.3,1.37104011]
[1740098477839,0.30492453,655.9,654.53,1.14253342]
[1740098478639,0.84737645,655.89,654.53,1.14253342]
[1740098478836,1.12303675,655.88,654.53,1.14253342]
[1740098479139,0.30494312,655.86,654.53,1.14253342]
[1740098479740,2.44272488,655.85,654.53,1.14253342]
[1740098479941,0.30495707,655.83,654.46,1.14253342]
[1740098481140,0.8466494,655.82,654.46,1.14253342]
[1740098481336,0.30497102,655.8,654.46,1.14253342]
[1740098482142,0.30497102,655.8,654.29,1.14253342]
[1740098485242,0.30497102,655.8,654.23,1.14253342]
[1740098487646,0.30497102,655.8,653.65,2.33267241]
[1740098487647,0.30497102,655.8,654.19,1.14253342]
[1740098490252,0.30497102,655.8,654.47,1.14253342]
[1740098492751,0.30497102,655.8,653.95,2.33267241]
[1740098492752,0.989,655.79,654.44,1.14253342]
[1740098492953,0.30498497,655.77,654.44,1.14253342]
[1740098493350,1.59530577,655.76,654.44,1.14253342]
[1740098493552,0.30499893,655.74,654.44,1.14253342]
[1740098495351,0.30499893,655.74,654.42,1.14253342]
[1740098500857,0.30499893,655.74,654.48,1.14253342]
[1740098503558,0.30499893,655.74,654.33,1.14253342]
[1740098505767,0.30499893,655.74,654.13,1.14253342]
[1740098508565,0.30499893,655.74,654.15,1.14253342]
[1740098510166,0.30499893,655.74,654.65,1.14253342]
[1740098512670,0.30499893,655.74,654.59,1.14253342]
[1740098515969,0.30499893,655.74,654.57,1.14253342]
[1740098518273,0.30499893,655.74,653.99,2.33267241]
[1740098518274,0.30499893,655.74,654.29,1.14253342]
[1740098519470,1.225,655.73,654.29,1.14253342]
[1740098519669,0.30501288,655.71,654.29,1.14253342]
[1740098520770,0.30501288,655.71,653.82,1.37104011]